bitfinex/quotes_SOLUSD_20240729
["timestamp","ask_amount","ask_price","bid_price","bid_amount"]
[1722234331346,1.28987242,193.89,193.77,32.82]
[1722234331644,12.82,193.86,193.79,12.82]
[1722234331841,12.82,193.86,193.8,65.0]
[1722234332150,12.82,193.89,193.82,12.82]
[1722234332327,12.82,193.88,193.83,20.0]
[1722234332738,12.82,193.88,193.81,20.0]
[1722234332928,12.82,193.88,193.82,45.0]
[1722234333120,1.28964676,193.92,193.83,20.0]
[1722234333121,1.28961979,193.92,193.83,20.0]
[1722234333338,12.82,193.91,193.84,45.0]
[1722234333543,16.2751,193.93,193.85,32.82]
[1722234333741,12.82,193.93,193.86,57.82]
[1722234334043,12.82,193.9,193.87,20.0]
[1722234334235,1.28938718,193.93,193.85,20.0]
[1722234334416,12.82,193.91,193.85,20.0]
[1722234334616,12.82,193.91,193.84,20.0]
[1722234334822,12.82,193.91,193.85,45.0]
[1722234335119,12.82,193.91,193.86,20.0]
[1722234335321,6.2771,193.94,193.86,20.0]
[1722234336017,12.82,193.92,193.87,45.0]
[1722234336220,6.2771,193.94,193.86,20.0]
[1722234336221,12.82,193.9,193.88,20.0]
[1722234336436,12.82,193.9,193.86,20.0]
[1722234336843,7.56644442,193.94,193.86,20.0]
[1722234337154,12.82,193.88,193.82,20.0]
[1722234337331,12.82,193.89,193.82,20.0]
[1722234337733,12.82,193.87,193.82,20.0]
[1722234337925,21.8171,193.94,193.8,20.0]
[1722234338125,12.82,193.86,193.78,12.82]
[1722234338745,12.82,193.86,193.79,28.9701]
[1722234339131,16.3981,193.88,193.76,6.4029]
[1722234339449,1.28983734,193.87,193.76,6.4029]
[1722234340445,1.28983734,193.87,193.74,16.6491]
[1722234341747,1.28983734,193.87,193.75,65.0]
[1722234342527,16.3981,193.88,193.75,65.0]
[1722234342528,17.68807511,193.88,193.75,65.0]
[1722234342734,17.68807511,193.88,193.76,0.17]
[1722234342948,17.68807511,193.88,193.76,0.34]
[1722234343747,16.3981,193.88,193.76,0.34]
[1722234343952,25.62,193.83,193.65,254.9]
[1722234344124,1.29022159,193.82,193.66,1.02926608]
[1722234345161,1.29022159,193.82,193.65,1.02916356]
[1722234345331,1.29022159,193.82,193.65,21.02916356]
[1722234345651,15.2302,193.81,193.64,42.57567005]
[1722234345856,1.29042199,193.8,193.64,42.57594705]
[1722234346041,6.4636,193.79,193.65,1.02988167]
[1722234346746,15.2302,193.81,193.65,1.02988167]
[1722234346951,6.4636,193.85,193.67,41.16]
[1722234347256,6.4636,193.85,193.7,25.62]
[1722234347455,6.4636,193.85,193.71,66.36862289]
[1722234348233,7.75359703,193.85,193.71,65.34]
[1722234348530,1.29012969,193.84,193.71,65.34]
[1722234349466,25.62,193.83,193.71,45.17]
[1722234349760,1.29031927,193.82,193.71,45.17]
[1722234350661,25.62,193.83,193.72,20.0]
[1722234350662,26.91028788,193.83,193.72,20.0]
[1722234350967,26.91028788,193.83,193.73,45.0]
[1722234351130,26.91028788,193.83,193.74,20.0]
[1722234351334,1.29028898,193.82,193.65,1.02933418]
[1722234351559,1.29028898,193.82,193.66,0.34]
[1722234352371,15.0801,193.81,193.66,0.34]
[1722234352663,15.0801,193.81,193.59,5.99741738]
[1722234352664,6.3265,193.79,193.64,15.9262]
[1722234352882,1.29060967,193.78,193.61,25.62]
[1722234353163,25.62,193.77,193.59,21.67121738]
[1722234353337,1.29068079,193.76,193.6,1.03036815]
[1722234354058,25.62,193.77,193.6,1.03036815]
[1722234354363,1.29052358,193.76,193.61,25.62]
[1722234354566,1.29052358,193.78,193.62,46.02981736]
[1722234354740,1.29052358,193.78,193.63,0.34]
[1722234355250,1.29052358,193.78,193.63,21.36988222]
[1722234355458,1.29052358,193.78,193.64,45.0]
[1722234355642,1.29052358,193.78,193.65,20.34]
[1722234355841,1.29052358,193.78,193.66,45.0]
[1722234356054,1.29052358,193.78,193.67,20.34]
[1722234356248,6.3265,193.79,193.68,45.0]
[1722234356457,6.3265,193.79,193.69,19.5]
[1722234356672,7.61700917,193.79,193.7,45.0]
[1722234357035,6.3265,193.79,193.7,45.0]
[1722234357262,1.29045487,193.78,193.7,45.0]
[1722234357673,6.3265,193.79,193.7,45.0]
[1722234357975,6.3265,193.79,193.71,0.34]
[1722234358543,6.3265,193.79,193.71,1.36921873]
[1722234358854,6.3265,193.79,193.71,21.36900586]
[1722234359056,6.3265,193.79,193.72,45.0]
[1722234359253,15.0801,193.81,193.73,20.34]
[1722234359567,6.5715,193.84,193.74,45.0]
[1722234359743,6.5715,193.84,193.75,20.34]
[1722234359945,6.5715,193.84,193.76,46.02826476]
[1722234360145,6.5715,193.84,193.77,20.34]
[1722234360451,6.5715,193.84,193.78,45.0]
[1722234360754,6.5715,193.84,193.79,20.0]
[1722234361158,6.5715,193.84,193.8,45.0]
[1722234361470,6.5715,193.84,193.79,20.0]
[1722234361687,6.5715,193.84,193.71,21.02827069]
[1722234361976,6.5715,193.84,193.72,45.34]
[1722234362155,6.5715,193.84,193.73,20.0]
[1722234362351,6.5715,193.84,193.74,45.34]
[1722234362678,1.28998118,193.83,193.75,20.0]
[1722234362908,1.29006993,193.82,193.76,45.0]
[1722234363056,1.29006993,193.82,193.77,20.0]
[1722234363248,1.29006993,193.82,193.71,1.93411739]
[1722234363571,6.5715,193.84,193.68,17.0636768]
[1722234363868,6.5715,193.84,193.68,32.6036768]
[1722234364446,7.86145259,193.84,193.68,18.98561317]
[1722234364880,7.86145259,193.84,193.69,20.0]
[1722234365389,6.5715,193.84,193.7,1.02918128]
[1722234365874,6.5715,193.84,193.71,0.34]
[1722234366064,6.5715,193.84,193.72,1.02874443]
[1722234366271,6.5715,193.84,193.73,0.34]
[1722234366455,6.5715,193.84,193.73,21.36850365]
[1722234366653,6.5715,193.84,193.74,46.02832927]
[1722234366861,6.5715,193.84,193.75,20.34]
[1722234367088,6.5715,193.84,193.76,45.0]
[1722234367291,6.5715,193.84,193.77,20.0]
[1722234367460,6.5715,193.84,193.78,45.0]
[1722234367660,6.5715,193.84,193.79,20.34]
[1722234367874,6.5715,193.84,193.8,45.0]
[1722234369871,6.5715,193.84,193.79,20.0]
[1722234370070,6.5715,193.84,193.71,21.02823566]
[1722234370269,6.5715,193.84,193.72,20.0]
[1722234370487,6.5715,193.84,193.7,1.02871114]
[1722234370675,6.5715,193.84,193.71,1.0287106]
[1722234371282,6.5715,193.84,193.72,0.34]
[1722234371788,6.5715,193.84,193.72,45.34]
[1722234372087,6.5715,193.84,193.73,20.0]
[1722234372388,6.5715,193.84,193.74,45.34]
[1722234372595,6.5715,193.84,193.75,20.0]
[1722234372764,6.5715,193.84,193.76,45.0]
[1722234373090,6.5715,193.84,193.77,20.0]
[1722234373977,7.86151151,193.84,193.77,20.0]
[1722234374285,7.86151151,193.84,193.76,45.0]
[1722234374877,7.86151151,193.84,193.68,18.98523682]
[1722234375091,7.86151151,193.84,193.69,65.34]
[1722234375272,16.1189,193.83,193.69,20.0]
[1722234375590,1.29025197,193.82,193.69,20.0]
[1722234375763,1.29025197,193.82,193.68,1.92193637]
[1722234376076,16.1189,193.83,193.7,25.62]
[1722234376279,16.1189,193.83,193.7,1.02884929]
[1722234376591,1.29014178,193.82,193.68,1.02907453]
[1722234376789,1.29014178,193.82,193.68,46.02907453]
[1722234377097,1.29014178,193.82,193.69,0.34]
[1722234377395,12.82,193.79,193.72,12.82]
[1722234377570,12.82,193.79,193.73,65.17]
[1722234378102,12.82,193.78,193.73,65.0]
[1722234378268,12.82,193.79,193.73,65.0]
[1722234379172,12.82,193.8,193.73,77.82]
[1722234380676,12.82,193.81,193.73,77.82]
[1722234381692,12.82,193.81,193.74,12.82]
[1722234381900,12.82,193.81,193.75,65.0]
[1722234382191,12.82,193.82,193.75,65.0]
[1722234382595,28.9389,193.83,193.75,77.82]
[1722234382765,16.1189,193.83,193.76,12.82]
[1722234383077,16.1189,193.83,193.77,57.82]
[1722234383392,16.1189,193.83,193.78,57.82]
[1722234383604,16.1189,193.83,193.77,12.82]
[1722234383773,16.1189,193.83,193.78,45.0]
[1722234384369,16.1189,193.83,193.76,12.82]
[1722234384688,12.82,193.82,193.75,32.82]
[1722234384876,12.82,193.82,193.76,45.0]
[1722234385498,12.82,193.82,193.75,32.82]
[1722234385694,16.1189,193.83,193.75,20.0]
[1722234385998,28.9389,193.83,193.76,45.17]
[1722234386301,28.9389,193.83,193.76,57.82]
[1722234386465,16.1189,193.83,193.77,20.0]
[1722234386667,6.5715,193.84,193.8,12.82]
[1722234386872,6.5715,193.84,193.81,65.0]
[1722234387501,12.82,193.87,193.81,45.0]
[1722234388298,12.82,193.87,193.82,20.0]
[1722234389281,21.6283,193.88,193.82,20.0]
[1722234390379,1.28974316,193.87,193.82,20.0]
[1722234390591,1.28974316,193.87,193.78,0.34]
[1722234391012,1.28974316,193.87,193.78,0.17]
[1722234391213,1.28974316,193.87,193.73,20.0]
[1722234391500,1.28974316,193.87,193.74,45.34]
[1722234391805,1.28974316,193.87,193.75,20.0]
[1722234392100,22.91826186,193.88,193.75,20.0]
[1722234392296,22.91826186,193.88,193.73,20.0]
[1722234393192,22.91826186,193.88,193.74,45.34]
[1722234393384,22.91816018,193.88,193.75,20.0]
[1722234393589,22.91816018,193.88,193.76,45.34]
[1722234393806,22.91816018,193.88,193.77,20.0]
[1722234394004,48.52816018,193.88,193.78,45.0]
[1722234394508,48.52816018,193.88,193.79,20.0]
[1722234396412,48.52816018,193.88,193.73,20.0]
[1722234396611,1.2900104,193.87,193.73,20.0]
[1722234396900,48.52825085,193.88,193.73,20.0]
[1722234397309,48.52825085,193.88,193.73,21.02828228]
[1722234397310,22.91825085,193.88,193.73,21.02828228]
[1722234397492,22.91825085,193.88,193.74,46.3682792]
[1722234397691,1.28981032,193.87,193.75,20.0]
[1722234397910,21.6283,193.88,193.76,45.34]
[1722234398103,21.6283,193.88,193.77,20.0]
[1722234398290,21.6283,193.88,193.78,45.17]
[1722234398488,21.6283,193.88,193.79,20.0]
[1722234398698,21.6283,193.88,193.8,45.0]
[1722234399213,1.28980948,193.87,193.79,20.0]
[1722234399391,1.28980948,193.87,193.76,0.17]
[1722234399592,1.28980948,193.87,193.76,0.34]
[1722234401813,21.6283,193.88,193.76,0.17]
[1722234401991,21.6283,193.88,193.75,0.17]
[1722234402312,22.91829172,193.88,193.75,0.34]
[1722234402491,22.91829172,193.88,193.75,0.17]
[1722234402813,22.91829172,193.88,193.75,20.17]
[1722234403108,22.91829172,193.88,193.76,45.0]
[1722234403410,22.91829172,193.88,193.77,20.0]
[1722234404499,21.6283,193.88,193.77,20.0]
[1722234404697,21.6283,193.88,193.78,45.0]
[1722234404901,21.6283,193.88,193.79,20.0]
[1722234406096,21.6283,193.88,193.8,45.0]
[1722234406304,21.6283,193.88,193.81,20.0]
[1722234406703,21.6283,193.88,193.82,45.0]
[1722234407089,21.6283,193.88,193.82,46.02795595]
[1722234407294,21.6283,193.88,193.83,20.0]
[1722234407599,15.6106,193.88,193.84,45.0]
[1722234407792,15.6106,193.88,193.85,20.0]
[1722234408013,6.187,193.92,193.85,20.0]
[1722234409603,6.187,193.92,193.86,45.0]
[1722234409795,6.187,193.92,193.87,20.0]
[1722234410095,6.187,193.92,193.88,45.0]
[1722234410412,22.325753,193.97,193.89,20.34]
[1722234410710,22.325753,193.97,193.9,45.0]
[1722234411110,22.325753,193.97,193.91,20.0]
[1722234411320,12.79,193.96,193.89,20.0]
[1722234411806,12.79,193.96,193.89,21.02688487]
[1722234413216,12.79,193.95,193.89,21.02688487]
[1722234414215,12.79,193.94,193.89,20.0]
[1722234414417,12.79,193.94,193.88,20.0]
[1722234414623,12.79,193.94,193.87,20.0]
[1722234414833,12.79,193.94,193.88,46.02699686]
[1722234415200,12.79,193.94,193.89,20.0]
[1722234416918,22.325753,193.97,193.9,12.79]
[1722234417120,22.325753,193.97,193.91,78.81659341]
[1722234417306,22.325753,193.97,193.92,12.79]
[1722234417637,22.325753,193.97,193.93,45.0]
[1722234418901,0.797653,193.97,193.93,57.79]
[1722234419104,0.797653,193.97,193.94,12.96]
[1722234419318,0.797653,193.97,193.95,45.0]
[1722234419827,0.797653,193.97,193.94,45.17]
[1722234420010,0.797653,193.97,193.94,45.0]
[1722234420620,0.797653,193.97,193.93,45.0]
[1722234420829,0.797653,193.97,193.94,20.0]
[1722234421133,13.587653,193.97,193.89,12.79]
[1722234421332,13.587653,193.97,193.9,20.0]
[1722234421513,12.79,193.96,193.9,20.0]
[1722234421716,0.797653,193.97,193.91,12.79]
[1722234421927,0.797653,193.97,193.92,20.0]
[1722234422614,0.797653,193.97,193.92,32.79]
[1722234422975,0.797653,193.97,193.93,45.0]
[1722234423123,0.797653,193.97,193.94,20.0]
[1722234425632,0.797653,193.97,193.95,45.0]
[1722234426747,0.797653,193.97,193.94,20.0]
[1722234426952,0.797653,193.97,193.93,32.79]
[1722234427250,0.797653,193.97,193.94,45.0]
[1722234427549,0.797653,193.97,193.95,20.0]
[1722234428124,0.797653,193.97,193.93,33.81596296]
[1722234428333,0.797653,193.97,193.93,32.79]
[1722234429133,0.797653,193.97,193.94,45.0]
[1722234429327,0.797653,193.97,193.95,20.0]
[1722234429530,0.797653,193.97,193.96,45.0]
[1722234429727,0.797653,193.97,193.96,65.0]
[1722234431033,0.797653,193.97,193.96,78.13]
[1722234431232,0.797653,193.97,193.85,15.54]
[1722234431233,0.797653,193.97,193.86,1.02531711]
[1722234431467,12.79,193.96,193.85,16.73178491]
[1722234431637,12.79,193.95,193.88,12.79]
[1722234431950,12.79,193.95,193.85,15.7053]
[1722234432152,12.79,193.95,193.87,12.79]
[1722234432538,12.79,193.95,193.85,15.7053]
[1722234432744,12.79,193.95,193.87,12.79]
[1722234433250,12.79,193.94,193.88,20.0]
[1722234433439,12.79,193.94,193.87,20.0]
[1722234433640,12.79,193.92,193.87,20.0]
[1722234433836,14.07930462,193.91,193.8,15.2843]
[1722234434045,14.07930462,193.91,193.83,12.79]
[1722234434444,12.79,193.9,193.83,12.79]
[1722234434654,12.79,193.9,193.8,15.2843]
[1722234434862,12.79,193.9,193.82,12.79]
[1722234435231,1.28940998,193.93,193.83,20.0]
[1722234435432,1.28950135,193.92,193.8,15.2843]
[1722234435850,1.28950962,193.93,193.77,26.62731822]
[1722234436056,1.2896736,193.92,193.77,26.62731822]
[1722234436350,24.14938999,193.94,193.77,26.62731822]
[1722234436553,1.28958728,193.93,193.77,26.62731822]
[1722234436740,22.6898,193.94,193.77,26.62731822]
[1722234437459,22.6898,193.94,193.78,45.34]
[1722234437663,1.28944758,193.93,193.79,1.02740847]
[1722234437976,1.28944758,193.93,193.8,0.34]
[1722234438457,1.28944758,193.93,193.8,45.34]
[1722234438756,1.28944758,193.93,193.81,20.0]
[1722234438934,1.28944758,193.93,193.82,45.0]
[1722234439131,1.28944758,193.93,193.83,20.0]
[1722234440833,25.6,193.92,193.83,20.0]
[1722234441030,25.6,193.92,193.76,20.0]
[1722234441031,1.28975157,193.91,193.76,20.0]
[1722234441246,1.28975157,193.91,193.77,1.02816614]
[1722234442152,26.88968667,193.92,193.76,1.02798227]
[1722234442359,26.88968667,193.92,193.77,0.34]
[1722234442673,26.88968667,193.92,193.78,1.0281657]
[1722234443133,5.6,193.92,193.78,46.0281657]
[1722234443461,5.6,193.92,193.79,20.34]
[1722234443642,5.6,193.92,193.8,45.0]
[1722234443846,38.3998,193.94,193.81,20.0]
[1722234444043,38.3998,193.94,193.82,45.0]
[1722234444356,38.3998,193.94,193.83,20.0]
[1722234445067,22.8598,193.94,193.83,20.0]
[1722234445356,23.97928371,193.94,193.84,45.0]
[1722234445532,22.6898,193.94,193.85,20.0]
[1722234445730,22.6898,193.94,193.86,45.0]
[1722234446760,22.6898,193.94,193.85,20.0]
[1722234446951,22.6898,193.94,193.78,21.02729882]
[1722234447257,38.2298,193.94,193.79,0.17]
[1722234447459,38.2298,193.94,193.79,0.34]
[1722234447651,42.3547,193.94,193.79,0.34]
[1722234448158,38.2298,193.94,193.79,0.34]
[1722234448757,38.2298,193.94,193.79,45.34]
[1722234449063,38.2298,193.94,193.8,20.0]
[1722234449266,39.51943639,193.94,193.81,45.0]
[1722234449473,39.51943639,193.94,193.82,20.0]
[1722234449650,22.6898,193.94,193.82,20.0]
[1722234449971,0.34,193.93,193.82,20.0]
[1722234450151,0.34,193.93,193.79,0.17]
[1722234450152,1.28972984,193.92,193.79,0.17]
[1722234450473,16.82972984,193.92,193.76,20.0]
[1722234450646,16.82972984,193.92,193.77,0.34]
[1722234450843,15.54,193.9,193.76,20.0]
[1722234451048,27.05994403,193.89,193.71,42.6319934]
[1722234452367,27.05994403,193.89,193.72,65.34]
[1722234452564,27.05994403,193.89,193.73,1.02859616]
[1722234452754,27.05994403,193.89,193.74,0.34]
[1722234452960,27.05994403,193.89,193.75,0.34]
[1722234453160,27.05994403,193.89,193.75,0.17]
[1722234453378,27.05994403,193.89,193.72,65.34]
[1722234454280,27.05994403,193.89,193.73,1.02859736]
[1722234454281,26.88994403,193.89,193.73,1.02859736]
[1722234454484,26.88994403,193.89,193.74,0.34]
[1722234454654,1.28994403,193.89,193.74,1.3682276]
[1722234455359,21.3106,193.91,193.74,1.3682276]
[1722234455360,22.60038889,193.91,193.74,1.3682276]
[1722234456065,22.60038889,193.91,193.74,26.9682276]
[1722234456264,22.60038889,193.91,193.75,65.0]
[1722234456468,22.60038889,193.91,193.76,0.34]
[1722234456669,22.60038889,193.91,193.76,0.17]
[1722234456868,22.60038889,193.91,193.76,0.34]
[1722234457375,12.81,193.86,193.78,12.81]
[1722234457566,12.81,193.86,193.79,20.0]
[1722234457877,22.60038889,193.91,193.8,12.81]
[1722234458098,12.81,193.88,193.81,77.81]
[1722234458253,12.81,193.88,193.79,20.0]
[1722234458458,22.60038889,193.91,193.79,20.0]
[1722234458459,12.81,193.87,193.79,32.81]
[1722234458784,12.81,193.87,193.8,45.0]
[1722234458969,12.81,193.87,193.81,20.0]
[1722234459866,21.3106,193.91,193.82,45.34]
[1722234460084,21.3106,193.91,193.86,12.81]
[1722234460284,21.3106,193.91,193.87,20.0]
[1722234461483,21.3106,193.91,193.87,32.81]
[1722234462588,21.3106,193.91,193.87,20.0]
[1722234462793,21.3106,193.91,193.86,20.0]
[1722234463092,21.3106,193.91,193.87,45.0]
[1722234465298,12.81,193.9,193.86,20.0]
[1722234465584,12.81,193.9,193.83,12.81]
[1722234465790,12.81,193.9,193.84,65.0]
[1722234466180,21.3106,193.91,193.84,20.0]
[1722234466181,12.81,193.87,193.84,20.0]
[1722234466495,1.28947625,193.89,193.8,12.81]
[1722234466496,12.81,193.88,193.8,12.81]
[1722234466786,12.81,193.88,193.81,32.81]
[1722234466986,12.81,193.88,193.81,12.81]
[1722234467206,12.81,193.87,193.8,12.81]
[1722234467703,12.81,193.85,193.73,16.1728]
[1722234467868,12.81,193.85,193.77,12.81]
[1722234469071,12.81,193.85,193.78,12.81]
[1722234469266,12.81,193.85,193.79,45.0]
[1722234469576,13.1172512,193.85,193.79,45.0]
[1722234469782,12.81,193.84,193.79,45.0]
[1722234470299,0.3072512,193.85,193.8,12.81]
[1722234470465,0.3072512,193.85,193.81,45.0]
[1722234470868,0.3072512,193.85,193.79,12.81]
[1722234471200,13.1172512,193.85,193.8,20.0]
[1722234471875,13.1172512,193.85,193.79,20.0]
[1722234472770,0.3072512,193.85,193.79,20.0]
[1722234474471,0.3072512,193.85,193.8,12.81]
[1722234474795,0.3072512,193.85,193.81,20.0]
[1722234475299,0.3072512,193.85,193.8,20.0]
[1722234477484,0.3072512,193.85,193.8,32.81]
[1722234477690,0.3072512,193.85,193.81,45.0]
[1722234480171,0.3072512,193.85,193.8,32.81]
[1722234480374,0.3072512,193.85,193.8,20.0]
[1722234481768,0.3072512,193.85,193.81,57.81]
[1722234481972,0.3072512,193.85,193.82,1.02783489]
[1722234482374,0.3072512,193.85,193.81,57.81]
[1722234482781,0.3072512,193.85,193.84,12.81]
[1722234483283,0.3072512,193.85,193.84,20.0]
[1722234483877,0.3072512,193.85,193.83,20.0]
[1722234484599,0.3072512,193.85,193.83,12.81]
[1722234484777,0.3072512,193.85,193.84,20.0]
[1722234485275,0.3072512,193.85,193.84,65.0]
[1722234485900,0.3072512,193.85,193.84,77.81]
[1722234486300,0.3072512,193.85,193.84,78.15]
[1722234491706,0.3072512,193.85,193.84,65.34]
[1722234492001,0.3072512,193.85,193.84,78.15]
[1722234494007,0.514069,193.85,193.84,78.15]
[1722234496508,0.514069,193.85,193.84,77.98]
[1722234498512,1.45318666,193.88,193.84,78.15]
[1722234498683,1.45318666,193.88,193.87,12.81]
[1722234498888,1.45318666,193.88,193.87,77.81]
[1722234499497,1.45318666,193.88,193.87,20.0]
[1722234499807,1.45318666,193.88,193.85,12.81]
[1722234499808,1.45318666,193.88,193.86,20.0]
[1722234500008,1.45318666,193.88,193.84,20.0]
[1722234500196,1.45318666,193.88,193.85,45.0]
[1722234500504,1.45318666,193.88,193.86,32.81]
[1722234500679,1.45318666,193.88,193.87,57.81]
[1722234500882,1.45318666,193.88,193.87,77.81]
[1722234501804,1.45318666,193.88,193.87,65.0]
[1722234502526,1.45318666,193.88,193.87,77.81]
[1722234503325,1.45318666,193.88,193.87,20.0]
[1722234504203,1.45318666,193.88,193.86,20.0]
[1722234505206,1.45318666,193.88,193.86,32.81]
[1722234505410,1.45318666,193.88,193.86,20.0]
[1722234506234,1.45318666,193.88,193.8,17.07591327]
[1722234506235,7.57238666,193.88,193.8,1.89571327]
[1722234506401,20.38238666,193.88,193.76,19.64911117]
[1722234506607,7.57238666,193.88,193.82,12.81]
[1722234507906,7.57238666,193.88,193.83,20.0]
[1722234508103,7.57238666,193.88,193.83,32.81]
[1722234508309,7.57238666,193.88,193.84,1.0276689]
[1722234508513,7.57238666,193.88,193.83,32.81]
[1722234509799,7.57238666,193.88,193.83,20.0]
[1722234510930,7.57238666,193.88,193.84,45.0]
[1722234511927,20.38238666,193.88,193.83,20.0]
[1722234512131,20.38238666,193.88,193.82,20.0]
[1722234512305,7.57238666,193.88,193.83,45.0]
[1722234512508,7.57238666,193.88,193.84,20.0]
[1722234514742,1.45318666,193.88,193.87,12.81]
[1722234514939,1.45318666,193.88,193.87,32.81]
[1722234515118,35.0134117,193.9,193.87,20.34]
[1722234515302,1.43095951,193.92,193.88,65.17]
[1722234515508,1.43095951,193.92,193.88,77.98]
[1722234515705,1.43095951,193.92,193.88,20.0]
[1722234516138,1.43095951,193.92,193.87,12.81]
[1722234516340,1.43095951,193.92,193.88,65.0]
[1722234516912,1.43095951,193.92,193.88,45.0]
[1722234518117,14.24095951,193.92,193.85,12.81]
[1722234518331,12.81,193.91,193.86,20.0]
[1722234518718,12.81,193.91,193.84,12.81]
[1722234518921,12.81,193.91,193.77,1.02739581]
[1722234518922,1.43095951,193.92,193.86,12.81]
[1722234519109,1.43095951,193.92,193.87,20.0]
[1722234519434,1.43095951,193.92,193.88,45.0]
[1722234519635,1.43095951,193.92,193.89,20.0]
[1722234520513,1.43095951,193.92,193.88,20.0]
[1722234520931,1.43095951,193.92,193.91,12.81]
[1722234521110,1.43095951,193.92,193.91,32.81]
[1722234521310,1.43095951,193.92,193.91,77.81]
[1722234524131,1.43095951,193.92,193.91,78.15]
[1722234524341,1.43095951,193.92,193.91,65.0]
[1722234524723,1.43095951,193.92,193.91,77.81]
[1722234528067,1.43095951,193.92,193.91,93.2961]
[1722234528243,1.43095951,193.92,193.91,93.6361]
[1722234528447,1.43095951,193.92,193.91,77.98]
[1722234528634,1.43095951,193.92,193.91,77.81]
[1722234528824,1.43095951,193.92,193.91,65.0]
[1722234529026,1.43095951,193.92,193.91,20.0]
[1722234530420,1.43095951,193.92,193.91,65.0]
[1722234531536,1.43095951,193.92,193.91,77.81]
[1722234533123,1.43095951,193.92,193.91,77.98]
[1722234534040,1.43095951,193.92,193.91,78.15]
[1722234536025,1.43095951,193.92,193.91,79.17611757]
[1722234536215,1.43095951,193.92,193.91,78.15]
[1722234536419,1.43095951,193.92,193.91,20.0]
[1722234536631,1.43095951,193.92,193.88,21.0263971]
[1722234536834,1.43095951,193.92,193.91,12.81]
[1722234537137,1.43095951,193.92,193.91,32.81]
[1722234538129,1.43095951,193.92,193.91,77.98]
[1722234538733,1.43095951,193.92,193.91,78.15]
[1722234544470,1.43095951,193.92,193.91,20.0]
[1722234544766,1.43095951,193.92,193.91,12.81]
[1722234544956,1.43095951,193.92,193.91,32.81]
[1722234545751,1.43095951,193.92,193.91,20.0]
[1722234546572,1.43095951,193.92,193.9,12.81]
[1722234546878,1.43095951,193.92,193.86,12.81]
[1722234547049,1.43095951,193.92,193.87,1.02705527]
[1722234547365,1.43095951,193.92,193.87,12.81]
[1722234547571,1.43095951,193.92,193.88,12.81]
[1722234548251,1.43095951,193.92,193.87,12.81]
[1722234548451,1.43095951,193.92,193.88,12.81]
[1722234549374,1.43095951,193.92,193.89,20.0]
[1722234549963,1.43095951,193.92,193.89,32.81]
[1722234550163,1.43095951,193.92,193.9,12.81]
[1722234550367,1.43095951,193.92,193.91,12.81]
[1722234550546,1.43095951,193.92,193.91,57.81]
[1722234551479,1.43095951,193.92,193.9,12.81]
[1722234552075,1.43095951,193.92,193.91,45.0]
[1722234552277,1.43095951,193.92,193.91,57.81]
[1722234552582,1.43095951,193.92,193.91,45.0]
[1722234553168,1.43095951,193.92,193.9,57.81]
[1722234554967,1.43095951,193.92,193.89,20.0]
[1722234555167,1.43095951,193.92,193.9,12.81]